fUSD/lending_fUSD_20260203
["ID","MTS","AMOUNT","RATE_DAILY","PERIOD"]
[404430064,1770135032208,-150.01399761,9.043e-05,2]
[404430065,1770135032217,-378.54691567,9.043e-05,2]
[404430066,1770135032230,-147.2212798,9.043e-05,2]
[404430067,1770135032239,-596.5317202,9.044e-05,2]
[404430068,1770135032250,-445.4682798,9.044e-05,2]
[404430069,1770135032260,-480.03527804,9.105e-05,2]
[404430070,1770135032279,-685.45535928,9.105e-05,2]
[404430071,1770135032290,-220.87936268,9.105e-05,2]
[404430072,1770135032300,-235.05,9.203e-05,2]
[404430073,1770135032313,-808.32,9.239e-05,2]
[404430074,1770135032334,-353.10059107,9.385e-05,2]
[404430075,1770135032349,-172.6676044,9.385e-05,2]
[404430076,1770135032360,-300.0,9.543e-05,2]
[404430078,1770135032370,-57.07419382,9.543e-05,2]
[404430080,1770135032383,-853.06165973,9.543e-05,2]
[404430082,1770135032409,-289.86414645,9.543e-05,2]
[404430084,1770135032428,-150.0,9.593e-05,2]
[404430086,1770135032438,-449.36075383,9.594e-05,2]
[404430089,1770135032450,-8358.6192992,9.594e-05,2]
[404430091,1770135032461,-2170.12585692,9.594e-05,2]
[404430093,1770135032473,-2649.8936118,9.594e-05,2]
[404430095,1770135032485,-488.41,9.594e-05,2]
[404430100,1770135038217,-4349.99954843,9.594e-05,2]
[404430101,1770135038230,-703.90092982,9.594e-05,2]
[404430102,1770135038240,-999.99,9.594e-05,2]
[404430103,1770135038250,-5313.97,9.594e-05,2]
[404430104,1770135038260,-9999.99,9.594e-05,2]
[404430105,1770135038270,-150.99,9.594e-05,2]
[404430106,1770135038280,-150.99,9.594e-05,2]
[404430107,1770135038290,-5200.0,9.7e-05,3]
[404430108,1770135038300,-525.76819547,9.727e-05,2]
[404430109,1770135038310,-1600.0,9.727e-05,2]
[404430110,1770135038321,-808.32,9.752e-05,2]
[404430111,1770135038330,-10400.0,9.8e-05,3]
[404430112,1770135038340,-15600.0,9.9e-05,3]
[404430113,1770135038350,-166.66,9.979e-05,2]
[404430114,1770135038359,-299.99,9.979e-05,2]
[404430115,1770135038368,-500.0,9.999e-05,2]
[404430116,1770135038379,-500.0,9.999e-05,2]
[404430117,1770135038388,-500.0,9.999e-05,2]
[404430118,1770135038398,-500.0,9.999e-05,2]
[404430119,1770135038407,-644.11331901,9.999e-05,2]
[404430120,1770135038417,-500.0,9.999e-05,2]
[404430121,1770135038427,-500.0,9.999e-05,2]
[404430122,1770135038437,-500.0,9.999e-05,2]
[404430123,1770135038447,-151.0,0.0001,2]
[404430124,1770135038457,-9999.99,0.0001,2]
[404430125,1770135038467,-9999.99,0.0001,2]
[404430126,1770135038476,-3298.8,0.0001,2]
[404430127,1770135038486,-20900.0,0.0001,3]
[404430128,1770135038495,-235.05,0.00010123,2]
[404430129,1770135038504,-150.01399761,0.00010198,2]
[404430130,1770135038514,-437.3,0.00010265,2]
[404430131,1770135038523,-808.32,0.00010265,2]
[404430132,1770135038533,-204.69,0.00010287,2]
[404430134,1770135038543,-166.66,0.00010308,2]
[404430137,1770135038553,-1714.48553944,0.00010346,2]
[404430138,1770135038563,-1954.94174551,0.00010346,2]
[404430139,1770135038576,-870.85979046,0.00010346,2]
[404430140,1770135038585,-203.87618167,0.00010346,2]
[404430141,1770135038595,-749.3077445,0.00010436,2]
[404430143,1770135038606,-749.3077445,0.00010436,2]
[404430144,1770135038615,-151.0,0.00010443,2]
[404430145,1770135038625,-509.64738088,0.00010444,2]
[404430146,1770135038636,-500.0,0.00010444,2]
[404430147,1770135038646,-500.0,0.00010444,2]
[404430148,1770135038656,-500.0,0.00010444,2]
[404430149,1770135038666,-500.0,0.00010444,2]
[404430150,1770135038675,-500.0,0.00010444,2]
[404430151,1770135038685,-273.26813341,0.00010444,2]
[404430152,1770135038694,-500.0,0.00010444,2]
[404430153,1770135038704,-526.6801593,0.00010444,2]
[404430154,1770135038713,-500.0,0.00010444,2]
[404430155,1770135038727,-500.0,0.00010444,2]
[404430156,1770135038736,-500.0,0.00010444,2]
[404430157,1770135038746,-600.0,0.00010444,2]
[404430158,1770135038756,-4122.6247,0.00010445,2]
[404430159,1770135038766,-60111.1795,0.00010445,2]
[404430160,1770135038775,-2544.7096,0.00010446,2]
[404430161,1770135038785,-3108219.62386365,0.00010446,2]
[404430162,1770135038797,-9057.38400054,0.00010446,2]
[404430163,1770135038808,-6814.94453654,0.00010446,2]
[404430164,1770135038820,-461.06684826,0.00010446,2]
[404430165,1770135038834,-964.0942,0.00010446,2]
[404430166,1770135038847,-713.71647197,0.00010446,2]
[404430167,1770135040333,-286.89549994,0.00010446,2]
[404430168,1770135040628,-385.7881884,0.00010446,2]
[404430169,1770135040639,-373096.4863907,0.00010446,2]
[404430170,1770135040649,-2500.0,0.00010446,2]
[404430171,1770135040658,-420.0,0.00010498,2]
[404430172,1770135040668,-1680.0,0.00010498,2]
[404430173,1770135040679,-200.0,0.0001054,2]
[404430174,1770135040689,-151.0,0.0001054,2]
[404430175,1770135040699,-151.0,0.0001054,2]
[404430177,1770135040708,-151.0,0.0001054,2]
[404430179,1770135040720,-151.0,0.0001054,2]
[404430181,1770135040730,-151.0,0.0001054,2]
[404430183,1770135040739,-151.0,0.0001054,2]
[404430185,1770135040748,-151.0,0.0001054,2]
[404430187,1770135040757,-151.0,0.0001054,2]
[404430189,1770135040767,-151.0,0.0001054,2]
[404430191,1770135040776,-151.0,0.0001054,2]
[404430193,1770135040786,-151.0,0.0001054,2]
[404430195,1770135040795,-500.0,0.0001054,2]
[404430197,1770135040805,-500.0,0.0001054,2]
[404430199,1770135040814,-500.0,0.0001054,2]
[404430201,1770135040824,-500.0,0.0001054,2]
[404430203,1770135040833,-500.0,0.0001054,2]
[404430204,1770135040845,-500.0,0.0001054,2]
[404430207,1770135040855,-500.0,0.0001054,2]
[404430209,1770135040865,-500.0,0.0001054,2]
[404430211,1770135040875,-500.0,0.0001054,2]
[404430213,1770135040884,-500.0,0.0001054,2]
[404430214,1770135040894,-500.0,0.0001054,2]
[404430217,1770135040903,-151.0,0.0001054,2]
[404430218,1770135040912,-151.0,0.0001054,2]
[404430220,1770135040923,-151.0,0.0001054,2]
[404430222,1770135040932,-151.0,0.0001054,2]
[404430225,1770135040942,-151.0,0.0001054,2]
[404430227,1770135040951,-151.0,0.0001054,2]
[404430229,1770135040961,-151.0,0.0001054,2]
[404430231,1770135040971,-151.0,0.0001054,2]
[404430233,1770135040980,-151.0,0.0001054,2]
[404430235,1770135040990,-151.0,0.0001054,2]
[404430237,1770135040999,-151.0,0.0001054,2]
[404430239,1770135041008,-200.0,0.0001054,2]
[404430241,1770135041018,-151.0,0.0001054,2]
[404430243,1770135041027,-151.0,0.0001054,2]
[404430245,1770135041036,-151.0,0.0001054,2]
[404430246,1770135041046,-151.0,0.0001054,2]
[404430249,1770135041056,-151.0,0.0001054,2]
[404430251,1770135041065,-151.0,0.0001054,2]
[404430253,1770135041079,-151.0,0.0001054,2]
[404430255,1770135041089,-151.0,0.0001054,2]
[404430257,1770135041099,-151.0,0.0001054,2]
[404430259,1770135041111,-500.0,0.0001054,2]
[404430261,1770135041121,-500.0,0.0001054,2]
[404430263,1770135041130,-500.0,0.0001054,2]
[404430265,1770135041139,-500.0,0.0001054,2]
[404430267,1770135041149,-500.0,0.0001054,2]
[404430269,1770135041159,-500.0,0.0001054,2]
[404430271,1770135041168,-500.0,0.0001054,2]
[404430273,1770135041178,-500.0,0.0001054,2]
[404430275,1770135041187,-500.0,0.0001054,2]
[404430277,1770135041197,-500.0,0.0001054,2]
[404430279,1770135041206,-500.0,0.0001054,2]
[404430281,1770135041215,-500.0,0.0001054,2]
[404430282,1770135041224,-2806.1669173,0.00010545,2]
[404430283,1770135041235,-255.0,0.00010552,2]
[404430284,1770135041246,-166.66,0.00010637,2]
[404430285,1770135041255,-250.0,0.00010728,2]
[404430286,1770135041264,-808.32,0.00010778,2]
[404430287,1770135041273,-1000.0,0.00010799,2]
[404430288,1770135041283,-490.0,0.00010856,2]
[404430289,1770135041292,-256.15037952,0.00010877,2]
[404430290,1770135041303,-4967.27629647,0.000109,2]
[404430291,1770135041312,-13108.72073636,0.000109,2]
[404430292,1770135041324,-23125.33720526,0.000109,2]
[404430293,1770135041334,-10000.0,0.00010904,2]
[404430294,1770135041344,-1600.0,0.00010943,2]
[404430295,1770135041354,-4583.81,0.00010959,2]
[404430296,1770135041363,-166.66,0.00010967,2]
[404430297,1770135041373,-235.05,0.00011044,2]
[404430298,1770135041383,-200.0,0.00011088,2]
[404430299,1770135041393,-200.0,0.00011088,2]
[404430300,1770135041402,-500.0,0.00011088,2]
[404430301,1770135041412,-26229.23653781,0.00011246,2]
[404430302,1770135041421,-231.0,0.00011247,2]
[404430303,1770135041431,-808.32,0.00011292,2]
[404430304,1770135041441,-166.66,0.00011296,2]
[404430305,1770135041451,-150.01399761,0.00011352,2]
[404430306,1770135041461,-500.0,0.00011385,2]
[404430307,1770135041470,-500.0,0.00011385,2]
[404430308,1770135041480,-500.0,0.00011385,2]
[404430309,1770135041490,-500.0,0.00011385,2]
[404430310,1770135041502,-500.0,0.00011385,2]
[404430311,1770135041512,-200.0,0.00011385,2]
[404430312,1770135041522,-209.40437684,0.00011385,2]
[404430313,1770135041532,-500.0,0.00011385,2]
[404430314,1770135041544,-500.0,0.00011385,2]
[404430315,1770135041554,-500.0,0.00011385,2]
[404430316,1770135041563,-500.0,0.00011385,2]
[404430317,1770135041574,-500.0,0.00011385,2]
[404430318,1770135041584,-500.0,0.00011385,2]
[404430319,1770135041594,-721.12765535,0.00011385,2]
[404430320,1770135041604,-277.35679052,0.00011385,2]
[404430321,1770135041614,-160.0,0.00011385,2]
[404430322,1770135041624,-209.40437684,0.00011385,2]
[404430323,1770135041633,-322.6107,0.00011385,2]
[404430324,1770135041643,-500.0,0.00011385,2]
[404430325,1770135041652,-642.81998071,0.00011385,2]
[404430326,1770135041661,-217.15233878,0.0001144,2]
[404430327,1770135041671,-225.18697532,0.00011495,2]
[404430328,1770135041680,-587.0,0.00011547,2]
[404430329,1770135041690,-2351.0,0.00011547,2]
[404430330,1770135041702,-233.51889341,0.0001155,2]
[404430331,1770135041711,-1000000.0,0.00011602,2]
[404430332,1770135041722,-1954.94174549,0.00011605,2]
[404430333,1770135041732,-242.15909246,0.00011605,2]
[404430334,1770135041742,-433.0,0.00011607,2]
[404430335,1770135041752,-166.66,0.00011626,2]
[404430336,1770135041762,-200.0,0.00011636,2]
[404430337,1770135041772,-200.0,0.00011636,2]
[404430338,1770135041782,-507.65857495,0.00011636,2]
[404430339,1770135041792,-251.11897888,0.0001166,2]
[404430340,1770135041802,-265.03954284,0.00011684,2]
[404430341,1770135041811,-260.4103811,0.00011715,2]
[404430342,1770135041823,-270.0455652,0.0001177,2]
[404430343,1770135041833,-808.32,0.00011805,2]
[404430344,1770135041844,-500.0,0.00011808,2]
[404430345,1770135041855,-280.03725112,0.00011825,2]
[404430346,1770135041864,-290.39862941,0.0001188,2]
[404430347,1770135041874,-26100.0,0.000119,4]
[404430348,1770135041886,-34594.12142349,0.000119,2]
[404430349,1770135041898,-200.0,0.00011933,2]
[404430350,1770135041908,-209.40437685,0.00011933,2]
[404430351,1770135041917,-287.61899177,0.00011933,2]
[404430352,1770135041928,-301.1433787,0.00011935,2]
[404430353,1770135041937,-235.05,0.00011964,2]
[404430354,1770135041947,-151.0,0.00012101,2]
[404430355,1770135041956,-1600.0,0.00012159,2]
[404430356,1770135041965,-200.0,0.00012184,2]
[404430357,1770135041975,-1714.48553941,0.00012235,2]
[404430358,1770135041986,-808.32,0.00012318,2]
[404430359,1770135041995,-200.0,0.00012481,2]
[404430360,1770135042004,-298.26089446,0.00012481,2]
[404430361,1770135042013,-823.0,0.00012702,2]
[404430362,1770135042023,-3292.0,0.00012702,2]
[404430363,1770135042033,-160.3826751,0.00012754,2]
[404430364,1770135042044,-334.5472959,0.00012754,2]
[404430365,1770135042054,-736.0,0.00012768,2]
[404430366,1770135042063,-808.32,0.00012831,2]
[404430367,1770135042074,-1954.94174549,0.00012864,2]
[404430368,1770135042084,-235.05,0.00012884,2]
[404430369,1770135042094,-46807.0713,0.000129,2]
[404430370,1770135042104,-37801.94347564,0.00012906,2]
[404430371,1770135042113,-200.0,0.00013029,2]
[404430372,1770135042123,-309.29654756,0.00013029,2]
[404430373,1770135042132,-150.0,0.00013146,2]
[404430374,1770135042141,-686.74889,0.00013146,2]
[404430375,1770135042150,-1223.497781,0.00013146,2]
[404430376,1770135042160,-1760.246672,0.00013146,2]
[404430377,1770135042169,-2296.995563,0.00013146,2]
[404430378,1770135042179,-2833.744454,0.00013146,2]
[404430379,1770135042188,-3370.493345,0.00013146,2]
[404430380,1770135042197,-3907.242236,0.00013146,2]
[404430381,1770135042207,-4443.991127,0.00013146,2]
[404430382,1770135042216,-4980.740018,0.00013146,2]
[404430383,1770135042226,-808.32,0.00013345,2]
[404430384,1770135042236,-1600.0,0.00013375,2]
[404430385,1770135042245,-3240.0,0.00013425,2]
[404430386,1770135042256,-150.0,0.00013443,2]
[404430387,1770135042266,-292.715643,0.00013443,2]
[404430388,1770135042276,-435.431287,0.00013443,2]
[404430389,1770135042286,-578.146931,0.00013443,2]
[404430390,1770135042295,-720.862574,0.00013443,2]
[404430391,1770135042304,-863.578218,0.00013443,2]
[404430392,1770135042313,-1006.293862,0.00013443,2]
[404430393,1770135042324,-1149.009506,0.00013443,2]
[404430394,1770135042333,-1291.725149,0.00013443,2]
[404430395,1770135042342,-1434.440793,0.00013443,2]
[404430396,1770135042352,-200.0,0.00013577,2]
[404430397,1770135042361,-150.01399761,0.00013661,2]
[404430398,1770135042371,-482.883945,0.00013698,2]
[404430399,1770135042381,-500.0,0.00013698,2]
[404430400,1770135042390,-541.60127521,0.00013698,2]
[404430401,1770135042400,-500.0,0.00013698,2]
[404430402,1770135042409,-151.96294497,0.00013698,2]
[404430403,1770135042419,-500.0,0.00013698,2]
[404430404,1770135042428,-500.0,0.00013698,2]
[404430405,1770135042437,-500.0,0.00013698,2]
[404430406,1770135042447,-500.0,0.00013698,2]
[404430407,1770135042456,-500.0,0.00013698,2]
[404430408,1770135042465,-500.0,0.00013698,2]
[404430409,1770135042475,-500.0,0.00013698,2]
[404430410,1770135042484,-500.0,0.00013698,2]
[404430411,1770135042494,-500.0,0.00013698,2]
[404430412,1770135042503,-500.0,0.00013698,2]
[404430413,1770135042513,-500.0,0.00013698,2]
[404430414,1770135042522,-587.89105672,0.00013698,2]
[404430415,1770135042532,-500.0,0.00013698,2]
[404430416,1770135042541,-500.0,0.00013698,2]
[404430417,1770135042550,-500.0,0.00013698,2]
[404430418,1770135042560,-500.0,0.00013698,2]
[404430419,1770135042570,-500.0,0.00013698,2]
[404430420,1770135042579,-500.0,0.00013698,2]
[404430421,1770135042588,-500.0,0.00013698,2]
[404430422,1770135042598,-500.0,0.00013698,2]
[404430423,1770135042607,-500.0,0.00013698,2]
[404430424,1770135042616,-500.0,0.00013698,2]
[404430425,1770135042626,-500.0,0.00013698,2]
[404430426,1770135042646,-500.0,0.00013698,2]
[404430427,1770135042656,-500.0,0.00013698,2]
[404430428,1770135042666,-340.45778603,0.00013698,2]
[404430429,1770135042675,-500.0,0.00013698,2]
[404430430,1770135042685,-500.0,0.00013698,2]
[404430431,1770135042695,-500.0,0.00013698,2]
[404430432,1770135042704,-500.0,0.00013698,2]
[404430433,1770135042714,-500.0,0.00013698,2]
[404430434,1770135042724,-500.0,0.00013698,2]
[404430435,1770135042734,-500.0,0.00013698,2]
[404430436,1770135042744,-500.0,0.00013698,2]
[404430437,1770135042754,-500.0,0.00013698,2]
[404430438,1770135042763,-620.13152007,0.00013698,2]
[404430439,1770135042773,-505.6105481,0.00013698,2]
[404430440,1770135042783,-500.0,0.00013698,2]
[404430441,1770135042794,-500.0,0.00013698,2]
[404430442,1770135042803,-500.0,0.00013698,2]
[404430443,1770135042813,-500.0,0.00013698,2]
[404430444,1770135042823,-500.0,0.00013698,2]
[404430445,1770135042837,-500.0,0.00013698,2]
[404430446,1770135042850,-500.0,0.00013698,2]
[404430447,1770135042860,-500.0,0.00013698,2]
[404430448,1770135042869,-500.0,0.00013698,2]
[404430449,1770135042879,-500.0,0.00013698,2]
[404430450,1770135042892,-500.0,0.00013698,2]
[404430451,1770135042901,-500.0,0.00013698,2]
[404430452,1770135042913,-509.06540724,0.00013698,2]
[404430453,1770135042924,-500.0,0.00013698,2]
[404430454,1770135042934,-500.0,0.00013698,2]
[404430455,1770135042944,-500.0,0.00013698,2]
[404430456,1770135042954,-500.0,0.00013698,2]
[404430457,1770135042964,-500.0,0.00013698,2]
[404430458,1770135042975,-545.50641599,0.00013698,2]
[404430459,1770135042986,-500.0,0.00013698,2]
[404430460,1770135042997,-500.0,0.00013698,2]
[404430461,1770135043007,-500.0,0.00013698,2]
[404430462,1770135043017,-500.0,0.00013698,2]
[404430463,1770135043027,-548.33821979,0.00013698,2]
[404430464,1770135043041,-500.0,0.00013698,2]
[404430465,1770135043051,-500.0,0.00013698,2]
[404430466,1770135043061,-500.0,0.00013698,2]
[404430467,1770135043071,-500.0,0.00013698,2]
[404430468,1770135043082,-500.0,0.00013698,2]
[404430469,1770135043091,-500.0,0.00013698,2]
[404430470,1770135043102,-500.0,0.00013698,2]
[404430471,1770135043112,-500.0,0.00013698,2]
[404430472,1770135043122,-500.0,0.00013698,2]
[404430473,1770135043132,-500.0,0.00013698,2]
[404430474,1770135043142,-500.0,0.00013698,2]
[404430475,1770135043152,-500.0,0.00013698,2]
[404430476,1770135043162,-500.0,0.00013698,2]
[404430477,1770135043172,-500.0,0.00013698,2]
[404430478,1770135043182,-500.0,0.00013698,2]
[404430479,1770135043192,-500.0,0.00013698,2]
[404430480,1770135043202,-500.0,0.00013698,2]
[404430481,1770135043212,-500.0,0.00013698,2]
[404430482,1770135043222,-500.0,0.00013698,2]
[404430483,1770135043236,-500.0,0.00013698,2]
[404430484,1770135043246,-500.0,0.00013698,2]
[404430485,1770135043255,-508.00914529,0.00013698,2]
[404430486,1770135043265,-500.0,0.00013698,2]
[404430487,1770135043276,-500.0,0.00013698,2]
[404430488,1770135043285,-500.0,0.00013698,2]
[404430489,1770135043295,-500.0,0.00013698,2]
[404430490,1770135043305,-500.0,0.00013698,2]
[404430491,1770135043315,-500.0,0.00013698,2]
[404430492,1770135043326,-500.0,0.00013698,2]
[404430493,1770135043336,-500.0,0.00013698,2]
[404430494,1770135043346,-500.0,0.00013698,2]
[404430495,1770135043356,-500.0,0.00013698,2]
[404430496,1770135043366,-500.0,0.00013698,2]
[404430497,1770135043375,-500.0,0.00013698,2]
[404430498,1770135043386,-595.81274949,0.00013698,2]
[404430499,1770135043396,-500.0,0.00013698,2]
[404430500,1770135043406,-500.0,0.00013698,2]
[404430501,1770135043416,-500.0,0.00013698,2]
[404430502,1770135043426,-500.0,0.00013698,2]
[404430503,1770135043439,-438.97921379,0.00013698,2]
[404430504,1770135043449,-500.0,0.00013698,2]
[404430505,1770135043459,-500.0,0.00013698,2]
[404430506,1770135043469,-500.0,0.00013698,2]
[404430507,1770135043478,-500.0,0.00013698,2]
[404430508,1770135043488,-500.0,0.00013698,2]
[404430509,1770135043499,-500.0,0.00013698,2]
[404430510,1770135043509,-500.0,0.00013698,2]
[404430511,1770135043521,-500.0,0.00013698,2]
[404430512,1770135043532,-500.0,0.00013698,2]
[404430513,1770135043542,-500.0,0.00013698,2]
[404430514,1770135043553,-452.02134495,0.00013698,2]
[404430515,1770135043563,-199.38200897,0.00013698,2]
[404430516,1770135043575,-500.0,0.00013698,2]
[404430517,1770135043584,-592.50627165,0.00013698,2]
[404430518,1770135043594,-500.0,0.00013698,2]
[404430519,1770135043605,-500.0,0.00013698,2]
[404430520,1770135043615,-168.77902155,0.00013698,2]
[404430521,1770135043628,-500.0,0.00013698,2]
[404430522,1770135043638,-500.0,0.00013698,2]
[404430523,1770135043647,-500.0,0.00013698,2]
[404430524,1770135043657,-500.0,0.00013698,2]
[404430525,1770135043666,-500.0,0.00013698,2]
[404430526,1770135043676,-500.0,0.00013698,2]
[404430527,1770135043686,-500.0,0.00013698,2]
[404430528,1770135043695,-500.0,0.00013698,2]
[404430529,1770135043706,-500.0,0.00013698,2]
[404430530,1770135043715,-500.0,0.00013698,2]
[404430531,1770135043725,-500.0,0.00013698,2]
[404430532,1770135043735,-500.0,0.00013698,2]
[404430533,1770135043744,-500.0,0.00013698,2]
[404430534,1770135043754,-500.0,0.00013698,2]
[404430535,1770135043764,-500.0,0.00013698,2]
[404430536,1770135043774,-500.0,0.00013698,2]
[404430537,1770135043783,-500.0,0.00013698,2]
[404430538,1770135043794,-599.11588893,0.00013698,2]
[404430539,1770135043803,-500.0,0.00013698,2]
[404430540,1770135043813,-500.0,0.00013698,2]
[404430541,1770135043826,-500.0,0.00013698,2]
[404430542,1770135043835,-500.0,0.00013698,2]
[404430543,1770135043845,-500.0,0.00013698,2]
[404430544,1770135043856,-500.0,0.00013698,2]
[404430545,1770135043865,-500.0,0.00013698,2]
[404430546,1770135043875,-12281.17,0.00013699,2]
[404430547,1770135043885,-37801.94347564,0.00013708,2]
[404430548,1770135043895,-235.05,0.00013804,2]
[404430549,1770135043904,-808.32,0.00013858,2]
[404430550,1770135043915,-1152.0,0.00013972,2]
[404430551,1770135043924,-4609.0,0.00013972,2]
[404430552,1770135043934,-1252.0,0.00014044,2]
[404430553,1770135043944,-500.0,0.00014082,2]
[404430554,1770135043954,-1714.48553941,0.00014123,2]
[404430556,1770135043964,-1954.94174549,0.00014123,2]
[404430557,1770135043973,-870.85979045,0.00014123,2]
[404430558,1770135043983,-346.92554585,0.00014123,2]
[404430559,1770135043994,-747.8093786,0.00014124,2]
[404430560,1770135044004,-200.0,0.00014125,2]
[404430561,1770135044013,-437.3,0.00014236,2]
[404430562,1770135044023,-151.0,0.00014393,2]
[404430565,1770135044033,-151.0,0.00014484,2]
[404430567,1770135044042,-151.0,0.00014484,2]
[404430569,1770135044052,-151.0,0.00014484,2]
[404430571,1770135044061,-151.0,0.00014484,2]
[404430573,1770135044072,-151.0,0.00014484,2]
[404430574,1770135044081,-151.0,0.00014484,2]
[404430576,1770135044091,-37801.94347564,0.00014509,2]
[404430578,1770135044101,-1600.0,0.00014591,2]
[404430580,1770135044111,-200.0,0.00014673,2]
[404430582,1770135044120,-160.0,0.00014737,2]
[404430584,1770135044129,-150.01399761,0.00014816,2]
[404430586,1770135044138,-6196.02197918,0.00014912,2]
[404430588,1770135044147,-166.66,0.00014927,2]
[404430590,1770135044157,-500.0,0.00015,2]
[404430591,1770135044166,-200.0,0.00015221,2]
[404430592,1770135044175,-166.66,0.00015241,2]
[404430593,1770135044185,-37801.94347564,0.00015311,2]
[404430594,1770135044195,-1613.0,0.0001537,2]
[404430595,1770135044204,-6453.0,0.0001537,2]
[404430596,1770135044218,-1954.94174549,0.00015382,2]
[404430597,1770135044234,-2129.0,0.00015454,2]
[404430598,1770135044244,-359.76179104,0.00015492,2]
[404430599,1770135044253,-21378.083409,0.00015536,7]
[404430600,1770135044263,-166.66,0.00015555,2]
[404430601,1770135044272,-500.0,0.00015589,2]
[404430602,1770135044282,-1852.42,0.00015698,2]
[404430603,1770135044292,-200.0,0.00015769,2]
[404430604,1770135044301,-500.0,0.00015851,2]
[404430605,1770135044311,-500.0,0.00015859,2]
[404430606,1770135044320,-166.66,0.00015869,2]
[404430607,1770135044330,-6601.836639,0.00015887,7]
[404430608,1770135044339,-5000.0,0.0001596,2]
[404430609,1770135044349,-150.01399761,0.0001597,2]
[404430610,1770135044359,-463.82475971,0.00015983,2]
[404430611,1770135044369,-180.0,0.00015999,2]
[404430612,1770135044385,-160.0,0.00016,3]
[404430613,1770135044395,-316.49289447,0.00016,2]
[404430614,1770135044405,-2000.0,0.00016,2]
[404430615,1770135044414,-1714.48553941,0.00016012,2]
[404430616,1770135044424,-437.3,0.00016062,2]
[404430617,1770135044434,-37801.94347564,0.00016113,2]
[404430618,1770135044443,-4438.32,0.00016116,2]
[404430619,1770135044453,-1000.0,0.00016172,2]
[404430620,1770135044463,-166.66,0.00016184,2]
[404430621,1770135044472,-200.0,0.00016317,2]
[404430622,1770135044483,-3409.46,0.00016394,2]
[404430623,1770135044493,-571.15632912,0.00016438,2]
[404430624,1770135044503,-500.0,0.00016438,2]
[404430625,1770135044514,-500.0,0.00016438,2]
[404430626,1770135044524,-500.0,0.00016438,2]
[404430627,1770135044534,-500.0,0.00016438,2]
[404430628,1770135044804,-500.0,0.00016438,2]
[404430629,1770135044815,-500.0,0.00016438,2]
[404430630,1770135044825,-500.0,0.00016438,2]
[404430631,1770135044835,-500.0,0.00016438,2]
[404430632,1770135044845,-203.37311569,0.00016438,2]
[404430633,1770135044857,-500.0,0.00016438,2]
[404430634,1770135044867,-500.0,0.00016438,2]
[404430635,1770135044877,-500.0,0.00016438,2]
[404430636,1770135044887,-500.0,0.00016438,2]
[404430637,1770135044897,-500.0,0.00016438,2]
[404430638,1770135044906,-500.0,0.00016438,2]
[404430639,1770135044916,-500.0,0.00016438,2]
[404430640,1770135044927,-500.0,0.00016438,2]
[404430641,1770135044937,-500.0,0.00016438,2]
[404430642,1770135044946,-500.0,0.00016438,2]
[404430643,1770135044955,-500.0,0.00016438,2]
[404430644,1770135044965,-500.0,0.00016438,2]
[404430645,1770135044974,-500.0,0.00016438,2]
[404430646,1770135044984,-500.0,0.00016438,2]
[404430647,1770135044993,-500.0,0.00016438,2]
[404430648,1770135045003,-500.0,0.00016438,2]
[404430649,1770135045013,-500.0,0.00016438,2]